bitfinex/quotes_ETHUSD_20240722
["timestamp","ask_amount","ask_price","bid_price","bid_amount"]
[1721611226003,2.82344,3541.8,3540.5,2.82445]
[1721611226206,2.82298,3542.4,3541.2,0.04314478]
[1721611226405,2.82298,3542.4,3540.4,7.3]
[1721611226406,3.0,3542.3,3540.4,7.3]
[1721611226614,2.82419,3540.9,3540.4,7.3]
[1721611226939,2.82422,3540.8,3540.5,0.04314478]
[1721611227270,2.82407,3541.0,3540.5,0.04314478]
[1721611227414,2.82407,3541.0,3540.0,2.82485]
[1721611227614,2.82417,3540.9,3540.0,2.82485]
[1721611227973,0.564817,3540.8,3540.1,2.86784478]
[1721611228117,2.82409,3541.0,3540.1,2.86784478]
[1721611228607,2.82385,3541.3,3540.2,3.37468]
[1721611228959,3.0,3541.9,3540.2,3.37468]
[1721611228960,2.82378,3541.4,3540.2,3.37468]
[1721611229158,2.82382,3541.3,3540.5,2.82444]
[1721611229448,2.82365,3541.6,3540.5,2.82444]
[1721611229612,2.82383,3541.3,3540.3,2.82459]
[1721611229954,2.82413,3541.0,3540.2,0.55]
[1721611230250,2.82413,3541.0,3540.4,0.04314478]
[1721611230409,2.82413,3541.0,3540.1,2.82477]
[1721611230611,2.82413,3541.0,3540.5,0.04314478]
[1721611230924,0.282413,3540.9,3540.3,2.82458]
[1721611231506,0.282413,3540.9,3540.4,0.04314478]
[1721611231849,2.82425,3540.8,3540.4,0.04314478]
[1721611232048,3.106573,3540.9,3540.4,0.04314478]
[1721611232252,2.82447,3540.5,3539.8,7.3]
[1721611232437,0.282447,3540.4,3539.8,7.3]
[1721611233038,2.82422,3540.8,3539.9,2.86801478]
[1721611233254,0.282413,3540.9,3540.0,2.82484]
[1721611233425,3.106573,3540.9,3540.0,2.82484]
[1721611233613,0.282413,3540.9,3540.1,2.82477]
[1721611233817,2.82423,3540.8,3540.1,0.04314478]
[1721611234026,0.3106643,3540.7,3540.1,0.04314478]
[1721611234429,0.3106643,3540.7,3539.9,0.05649039]
[1721611234619,2.82438,3540.6,3540.2,0.04314478]
[1721611234945,2.82464,3540.3,3539.8,7.3]
[1721611235814,0.3106643,3540.7,3539.8,7.3]
[1721611235815,2.82493,3539.9,3539.8,7.3]
[1721611236052,3.107423,3539.9,3539.2,7.3]
[1721611236219,2.82506,3539.8,3539.2,7.3]
[1721611236422,0.282493,3539.9,3539.3,0.0442233]
[1721611237257,2.82469,3540.3,3539.4,2.82532]
[1721611237554,2.82469,3540.3,3539.5,2.82523]
[1721611237857,2.82469,3540.3,3539.5,2.8694533]
[1721611238018,2.82448,3540.5,3539.6,2.82511]
[1721611238218,2.82448,3540.5,3539.7,2.82509]
[1721611238415,0.31351443,3540.4,3539.7,2.82509]
[1721611238742,0.31351443,3540.4,3539.8,0.0442233]
[1721611239257,0.31351443,3540.4,3539.9,2.82491]
[1721611239412,2.82417,3540.9,3539.9,2.8690833]
[1721611239617,3.0,3541.6,3539.9,0.0442233]
[1721611239915,2.82404,3541.1,3540.2,2.82467]
[1721611240116,3.11895337,3541.7,3540.0,2.82482]
[1721611240317,3.106095,3541.5,3539.8,2.82498]
[1721611240557,2.82428,3540.8,3539.8,2.82498]
[1721611240854,2.82414,3540.9,3540.0,2.82479]
[1721611241270,2.82401,3541.1,3540.1,2.82477]
[1721611241433,2.82407,3541.0,3540.1,2.8689933]
[1721611241742,3.388937,3540.9,3540.1,2.8689933]
[1721611241943,0.564797,3540.9,3540.1,2.8689933]
[1721611242152,0.564797,3540.9,3540.2,2.82469]
[1721611242544,3.388957,3540.9,3540.3,0.0441247]
[1721611242763,2.82444,3540.6,3540.3,0.0441247]
[1721611242968,3.106924,3540.5,3539.3,2.82539]
[1721611243145,2.82463,3540.3,3539.2,7.3]
[1721611243468,2.82463,3540.3,3539.0,2.82565]
[1721611243469,2.82473,3540.2,3539.4,0.04412643]
[1721611243783,0.34014784,3541.4,3539.5,2.456254]
[1721611243784,2.23433467,3541.3,3539.5,2.456254]
[1721611243938,2.82448,3540.5,3539.6,5.28141624]
[1721611244265,1.30544825,3541.2,3539.7,2.45616848]
[1721611244480,4.30544825,3541.2,3539.9,0.58799347]
[1721611244631,4.30544825,3541.2,3540.0,5.28095848]
[1721611244632,2.82398,3541.1,3540.0,5.28095848]
[1721611244967,2.82409,3541.0,3540.1,2.45616848]
[1721611245145,0.30816555,3540.9,3540.6,0.58799347]
[1721611245343,2.8243,3540.7,3540.6,0.58799347]
[1721611245548,2.82438,3540.6,3540.5,0.58799347]
[1721611245855,2.82438,3540.6,3540.5,3.04398437]
[1721611246577,5.64876,3540.6,3540.5,2.4559909]
[1721611246887,2.82461,3540.3,3540.2,0.58690055]
[1721611247199,0.31325456,3540.6,3540.2,8.6378898]
[1721611247335,2.82453,3540.4,3540.3,6.8774895]
[1721611248073,0.30816555,3540.9,3540.3,6.8774895]
[1721611248074,2.82439,3540.6,3540.3,6.8774895]
[1721611248239,5.64876,3540.6,3540.5,1.47374109]
[1721611248435,2.82461,3540.3,3540.2,1.76849184]
[1721611248641,2.82461,3540.3,3540.2,8.6456766]
[1721611248846,0.564917,3540.3,3540.2,8.6456766]
[1721611249148,2.82443,3540.6,3540.2,6.87718476]
[1721611249357,2.82443,3540.6,3540.0,2.06324048]
[1721611249358,2.82422,3540.8,3540.3,8.64564372]
[1721611249551,0.25756555,3541.2,3540.4,8.64564372]
[1721611249769,8.72926555,3541.2,3541.1,0.88422543]
[1721611249980,8.72926555,3541.2,3541.1,6.7e-06]
[1721611249981,14.55316555,3541.2,3541.1,6.7e-06]
[1721611250142,5.64844,3540.8,3540.7,0.88422543]
[1721611250342,6.49569,3540.8,3540.7,2.84922187]
[1721611250539,9.49569,3540.8,3540.7,2.84922187]
[1721611250799,9.49569,3540.8,3540.7,1.96499644]
[1721611250975,9.49569,3540.8,3540.7,2.84920331]
[1721611251146,12.31991,3540.8,3540.7,1.96499644]
[1721611251349,8.4729,3540.7,3540.6,0.88473229]
[1721611251684,5.64876,3540.6,3540.5,0.88473229]
[1721611251987,5.64876,3540.6,3540.5,2.8497579]
[1721611253746,5.64876,3540.6,3540.3,1.17896658]
[1721611253747,5.6489,3540.5,3540.4,0.88473229]
[1721611253946,5.6489,3540.5,3540.4,2.84979023]
[1721611254174,5.6489,3540.5,3540.4,3.14402452]
[1721611254357,6.7217165,3540.5,3540.4,3.14402452]
[1721611254574,1.0728165,3540.5,3540.4,1.96505794]
[1721611254779,0.29543406,3540.8,3540.4,4.42092995]
[1721611255090,2.8243,3540.7,3540.5,6.19032044]
[1721611255261,2.8243,3540.7,3539.8,5.26382015]
[1721611255262,2.8243,3540.7,3540.6,4.42092995]
[1721611255462,6.213444,3540.7,3540.6,4.42092995]
[1721611255665,6.213444,3540.7,3540.6,3.4396174]
[1721611255883,6.213444,3540.7,3540.6,1.96505794]
[1721611256881,6.213444,3540.7,3540.6,2.8497946]
[1721611257091,3.389144,3540.7,3540.6,2.8497974]
[1721611257245,3.389144,3540.7,3540.3,0.88473946]
[1721611257445,0.6213284,3540.6,3540.3,0.88473946]
[1721611258251,0.6213284,3540.6,3539.9,0.88473946]
[1721611258696,3.4457184,3540.6,3539.9,0.88473946]
[1721611258984,2.82447,3540.5,3539.9,0.88473946]
[1721611259173,3.4457384,3540.6,3539.7,7.3]
[1721611259378,5.8239,3541.2,3539.7,7.3]
[1721611259539,5.8239,3541.2,3539.7,10.12508]
[1721611259540,2.82425,3540.8,3539.7,10.12508]
[1721611259744,2.82433,3540.7,3539.7,10.12508]
[1721611259977,3.0,3541.5,3539.7,7.3]
[1721611260188,12.59828,3542.0,3539.2,13.64961602]
[1721611260189,2.82502,3539.8,3539.2,0.58979635]
[1721611260398,7.48,3541.1,3539.3,1.4737866]
[1721611260603,0.3,3541.4,3539.2,2.82549]
[1721611260604,2.82476,3540.2,3539.2,2.82549]
[1721611260804,3.38971,3540.1,3539.2,2.82549]
[1721611260960,2.82502,3539.8,3538.8,5.65155]
[1721611261156,0.56493,3540.1,3538.8,5.65155]
[1721611261157,0.56493,3540.1,3539.4,2.82533]
[1721611261363,2.82447,3540.5,3539.6,2.82511]
[1721611261658,2.82402,3541.1,3538.9,3.3757]
[1721611261860,2.82402,3541.1,3540.2,2.82468]
[1721611262117,2.82397,3541.2,3540.2,2.82465]
[1721611262253,2.82388,3541.3,3540.2,2.82465]
[1721611262254,2.82404,3541.1,3540.2,2.82465]
[1721611262468,3.388852,3541.0,3540.0,2.82484]
[1721611262689,3.388852,3541.0,3540.2,2.82469]
[1721611262690,0.564792,3541.0,3540.2,2.82469]
[1721611263002,2.82393,3541.2,3540.2,2.82469]
[1721611263204,2.824,3541.1,3540.2,2.82469]
[1721611263375,2.824,3541.1,3540.3,2.82461]
[1721611263969,2.8239,3541.2,3540.2,2.82463]
[1721611264168,0.594764,3541.1,3540.0,2.82485]
[1721611264383,0.594764,3541.1,3540.3,2.8246]
[1721611264582,0.594764,3541.1,3540.4,2.82447]
[1721611264799,2.8239,3541.2,3540.0,2.82485]
[1721611265003,2.82373,3541.5,3540.4,2.8245]
[1721611265504,5.82339,3541.9,3540.2,2.82465]
[1721611265714,2.82393,3541.2,3540.0,2.82485]
[1721611265869,3.0,3541.9,3540.3,2.82456]
[1721611266070,2.82388,3541.3,3540.3,2.82456]
[1721611266564,0.84137116,3541.8,3540.7,2.82429]
[1721611266769,0.84137116,3541.8,3540.8,2.88068575]
[1721611267068,2.82335,3541.9,3540.8,2.9233764]
[1721611267608,2.82344,3541.8,3540.9,2.82409]
[1721611267796,2.82326,3542.0,3541.0,2.82404]
[1721611267998,2.2538,3542.6,3541.1,2.82397]
[1721611268319,2.8228,3542.6,3541.6,2.82357]
[1721611268673,2.8228,3542.6,3541.7,0.04243298]
[1721611268674,0.28228,3542.5,3541.7,0.04243298]
[1721611268875,2.82295,3542.4,3541.7,0.04243298]
[1721611269112,0.28228,3542.5,3541.5,2.82362]
[1721611269277,0.28228,3542.5,3541.8,0.04243298]
[1721611269471,0.28228,3542.5,3541.0,0.05646362]
[1721611269472,0.28228,3542.5,3541.4,2.82373]
[1721611269698,0.310508,3542.4,3541.4,2.82373]
[1721611269881,0.310508,3542.4,3541.5,0.04237766]
[1721611270080,0.310508,3542.4,3541.7,2.82349]
[1721611270396,0.310508,3542.4,3541.4,2.82373]
[1721611270705,2.82287,3542.5,3541.8,0.04237766]
[1721611270905,2.82287,3542.5,3541.6,2.82357]
[1721611271074,2.82278,3542.6,3541.9,0.04237766]
[1721611271275,0.44275828,3543.8,3541.8,2.3024]
[1721611271618,2.82223,3543.3,3542.3,2.82301]
[1721611271829,0.31176577,3543.2,3542.4,0.55]
[1721611272423,0.31176577,3543.2,3542.5,0.09877031]
[1721611272647,2.82199,3543.6,3542.5,0.04231889]
[1721611272816,2.82191,3543.7,3542.5,2.86516889]
[1721611273151,2.82207,3543.5,3542.6,0.056447]
[1721611273454,0.1520814,3544.1,3543.1,2.82238]
[1721611273631,0.1520814,3544.1,3543.2,2.82224]
[1721611273807,0.52323602,3544.1,3543.3,0.55]
[1721611274344,3.34485602,3544.1,3543.2,2.82224]
[1721611274504,0.52323602,3544.1,3542.9,2.3162]
[1721611274708,2.82173,3544.0,3543.3,0.04214092]
[1721611274946,0.1520814,3544.1,3542.9,2.3162]
[1721611275113,0.1520814,3544.1,3543.4,0.04214092]
[1721611275319,0.1520814,3544.1,3543.8,2.82181]
[1721611275532,0.1520814,3544.1,3544.0,2.82167]
[1721611276044,0.1520814,3544.1,3544.0,5.68531515]
[1721611276289,7.77528146,3545.6,3544.3,2.82141]
[1721611276290,3.55815015,3545.6,3544.3,2.82141]
[1721611276458,2.82065,3545.3,3544.4,0.55]
[1721611276624,2.82065,3545.3,3543.7,2.981]
[1721611276827,2.82103,3544.8,3544.5,0.04197515]
[1721611277028,2.82128,3544.5,3543.8,7.85]
[1721611277241,2.82107,3544.8,3543.8,7.3]
[1721611277242,2.82126,3544.6,3543.8,7.3]
[1721611277425,0.56423,3544.5,3543.9,0.03856916]
[1721611277634,2.82089,3545.0,3543.9,0.03856916]
[1721611277819,2.82085,3545.1,3543.9,2.86029916]
[1721611278026,2.82088,3545.0,3544.0,2.82165]
[1721611278336,2.82077,3545.2,3544.2,2.82145]
[1721611278712,2.82081,3545.1,3544.1,0.58860533]
[1721611278943,0.282081,3545.0,3544.1,0.55]
[1721611279147,3.102961,3545.0,3544.1,2.82156]
[1721611279327,0.282081,3545.0,3544.2,0.03857261]
[1721611279651,0.35581502,3545.5,3544.2,0.58857261]
[1721611279953,0.35581502,3545.5,3544.6,2.82118]
[1721611280130,0.35581502,3545.5,3544.7,3.3711]
[1721611280328,2.82035,3545.7,3544.7,3.3711]
[1721611280552,2.8204,3545.6,3544.8,0.03857261]
[1721611280781,2.81991,3546.3,3544.8,0.03857261]
[1721611280914,5.6419,3544.9,3544.8,0.03857261]
[1721611281315,0.35,3546.0,3544.0,7.3]
[1721611281521,2.82114,3544.7,3544.1,0.03857261]
[1721611281935,2.82138,3544.4,3543.5,5.08266]
[1721611282258,5.82041,3545.6,3543.5,5.08266]
[1721611282259,2.82122,3544.6,3543.7,2.8219]
[1721611282421,2.8208,3545.1,3544.0,2.82166]
[1721611282619,2.82079,3545.1,3544.2,2.82144]
[1721611282853,3.102959,3545.0,3544.3,0.55]
[1721611283055,0.282079,3545.0,3544.4,2.82134]
[1721611283359,0.282079,3545.0,3544.5,0.55]
[1721611283532,2.82046,3545.6,3544.5,0.55]
[1721611283734,2.82025,3545.8,3544.8,2.82103]
[1721611283957,2.82025,3545.8,3544.9,0.60640613]
[1721611284332,0.783,3545.9,3545.0,0.03847963]
[1721611284333,2.82032,3545.7,3545.0,0.03847963]
[1721611284755,0.783,3545.9,3545.1,0.05640631]
[1721611284954,2.81991,3546.3,3545.1,0.05640631]
[1721611285154,2.82045,3545.6,3545.2,0.03841422]
[1721611285353,2.82045,3545.6,3544.7,5.1859]
[1721611285561,11.03696405,3546.9,3544.8,0.55]
[1721611285866,2.82031,3545.7,3544.8,0.58841422]
[1721611286041,0.282031,3545.6,3544.9,2.82094]
[1721611286241,0.282031,3545.6,3545.0,0.55]
[1721611286441,3.102451,3545.6,3545.0,0.58839185]
[1721611286750,2.82048,3545.5,3545.0,0.03839185]
[1721611287062,2.82048,3545.5,3544.8,0.55]
[1721611287364,2.82071,3545.2,3544.3,7.3]
[1721611287617,2.82071,3545.2,3544.4,0.03693384]
[1721611288076,2.81986,3546.3,3544.5,0.05641382]
[1721611288222,2.82047,3545.5,3544.5,0.05640642]
[1721611288423,2.82024,3545.8,3544.8,2.82096]
[1721611288625,0.282024,3545.7,3545.2,2.82069]
[1721611288827,2.81994,3546.2,3545.2,2.82069]
[1721611289061,2.81994,3546.2,3545.3,0.55]
[1721611289225,2.82008,3546.0,3545.3,0.58693213]
[1721611289425,2.81968,3546.5,3545.3,0.03693213]
[1721611289663,2.81992,3546.2,3545.3,0.58693213]
[1721611289864,3.101992,3546.1,3545.3,0.58693213]
[1721611290168,2.82007,3546.0,3545.3,0.58693213]
[1721611290358,2.82017,3545.9,3545.3,0.03693213]
[1721611290568,2.8204,3545.6,3545.1,0.55]
[1721611290774,0.281992,3546.1,3544.9,0.55]
[1721611291066,5.64128,3545.3,3545.2,0.03680679]
[1721611291272,2.821,3544.9,3544.3,7.3]
[1721611291442,2.821,3544.9,3543.9,2.4043]
[1721611291633,2.82123,3544.6,3544.4,0.03680679]
[1721611291829,2.82127,3544.5,3543.6,7.3]
[1721611292062,2.82155,3544.2,3543.6,7.3]
[1721611292248,2.82132,3544.5,3543.7,0.03690122]
[1721611292456,2.82155,3544.2,3543.7,0.03690122]
[1721611292728,2.82135,3544.4,3543.7,0.03690122]
[1721611292967,2.82127,3544.5,3543.7,0.03690122]
[1721611293280,2.82089,3545.0,3544.0,2.82166]
[1721611293444,2.82096,3544.9,3544.0,2.82166]
[1721611293644,2.82103,3544.8,3544.1,0.03702144]
[1721611293847,2.82111,3544.7,3544.1,0.03702144]
[1721611294269,2.82111,3544.7,3543.8,2.8218]
[1721611294565,2.82111,3544.7,3543.6,10.12198]
[1721611294566,0.564206,3544.6,3544.2,0.03701801]
[1721611294769,2.8213,3544.5,3544.3,0.03700942]
[1721611294974,2.82111,3544.7,3543.9,0.55]
[1721611295142,0.282111,3544.6,3544.0,0.03700942]
[1721611295468,0.282111,3544.6,3543.9,2.82168]
[1721611295668,2.82151,3544.2,3544.1,0.03700942]
[1721611295967,3.103361,3544.6,3543.3,7.3]
[1721611295968,5.64318,3544.1,3544.0,0.03576743]
[1721611296187,3.103361,3544.6,3544.0,0.0358525]
[1721611296188,2.82151,3544.2,3544.0,0.0358525]
[1721611296335,2.82208,3543.5,3543.3,7.3]
[1721611296681,2.82208,3543.5,3543.4,0.0358525]
[1721611297028,5.64416,3543.5,3543.4,0.0358525]
[1721611297536,5.64416,3543.5,3542.8,7.3]
[1721611297537,2.82222,3543.4,3542.8,7.3]
[1721611297773,2.82208,3543.5,3543.4,0.0358525]
[1721611297933,2.8223,3543.3,3542.4,2.3838]
[1721611298131,0.282208,3543.5,3542.8,2.82256]
[1721611298329,0.282208,3543.5,3542.4,2.44024402]
[1721611298330,0.282151,3544.1,3542.9,0.05643746]
[1721611298535,2.82173,3544.0,3543.0,0.55]
[1721611298735,2.82173,3544.0,3543.0,0.5858525]
[1721611298958,5.64476,3543.1,3543.0,0.0358525]
[1721611299167,5.64476,3543.1,3542.0,0.58979635]
[1721611299168,2.82236,3543.2,3542.0,0.05645266]
[1721611299332,0.282111,3544.6,3542.0,0.05645266]
[1721611299333,3.282111,3544.6,3542.0,0.05645266]
[1721611299533,2.82217,3543.4,3542.1,0.0358525]
[1721611299734,2.82269,3542.8,3542.1,0.0358525]
[1721611299958,2.82247,3543.0,3541.9,2.4649]
[1721611300132,2.82247,3543.0,3542.0,0.0358525]
[1721611300133,2.8227,3542.7,3542.0,0.0358525]
[1721611301033,2.8227,3542.7,3542.0,0.5858525]
[1721611301239,0.28227,3542.6,3542.0,0.5858525]
[1721611301439,2.82257,3542.9,3542.0,0.0358525]
[1721611301874,2.82279,3542.6,3542.0,0.0358525]
[1721611302169,2.82286,3542.5,3542.0,0.0358525]
[1721611302383,3.0,3544.1,3541.6,3.0]
[1721611302384,3.105226,3542.4,3541.6,3.0]
[1721611302549,2.82294,3542.4,3541.7,0.98175501]
[1721611302753,2.4024,3543.5,3541.6,3.0]
[1721611302754,2.82254,3543.0,3541.6,3.0]
[1721611302954,2.82229,3543.3,3542.3,2.82302]
[1721611303160,0.56444,3543.2,3542.4,0.60644447]
[1721611303355,2.822,3543.6,3542.7,2.82268]
[1721611303542,2.4024,3544.2,3542.8,4.41051105]
[1721611303543,2.82157,3544.2,3542.8,4.41051105]
[1721611303743,0.5554511,3544.5,3542.8,3.42905825]
[1721611303943,2.82182,3543.9,3542.8,0.55]
[1721611304144,2.82207,3543.5,3542.9,0.03465742]
[1721611304401,2.82216,3543.4,3542.9,0.03465742]
[1721611304982,2.82206,3543.6,3542.7,2.82269]
[1721611305148,0.282182,3543.8,3542.8,1.53150597]
[1721611305149,2.82207,3543.5,3542.8,1.53150597]
[1721611305348,2.82207,3543.5,3542.8,0.55]
[1721611305575,0.282207,3543.4,3542.9,0.03465742]
[1721611305793,2.82231,3543.2,3542.9,0.03465742]
[1721611305960,2.82231,3543.2,3542.3,8.18473946]
[1721611305961,2.82231,3543.2,3542.4,3.58979635]
[1721611306286,0.232207,3543.4,3542.5,6.41652822]
[1721611306485,0.232207,3543.4,3542.6,8.33315381]
[1721611306784,2.82191,3543.7,3542.7,5.82661187]
[1721611306947,2.82208,3543.5,3542.8,2.48859929]
[1721611307149,2.82208,3543.5,3542.9,0.55]
[1721611307357,2.82208,3543.5,3543.0,0.03487522]
[1721611307773,2.82208,3543.5,3542.8,0.55]
[1721611307956,0.564399,3543.4,3542.9,0.98150089]
[1721611308290,0.564399,3543.4,3542.9,0.03487522]
[1721611308850,2.82191,3543.7,3542.9,0.03487522]
[1721611309072,2.82206,3543.5,3542.9,0.03487522]
[1721611309282,2.82206,3543.5,3543.0,0.9815027]
[1721611309491,2.82215,3543.4,3542.8,1.13979635]
[1721611309695,2.82215,3543.4,3543.1,0.03487522]
[1721611309998,2.82223,3543.3,3542.8,0.55]
[1721611310229,2.82223,3543.3,3543.2,0.03487522]
[1721611310375,2.82223,3543.3,3542.7,1.13979635]
[1721611310578,2.82223,3543.3,3542.8,2.48874962]
[1721611310579,3.104593,3543.2,3542.8,2.48874962]
[1721611310821,0.282223,3543.2,3542.9,0.98154976]
[1721611311021,0.282223,3543.2,3542.6,3.41254635]
[1721611311188,2.82197,3543.7,3543.0,0.03487522]
[1721611311525,2.82182,3543.8,3543.1,0.98152687]
[1721611311680,2.82182,3543.8,3543.1,0.03487522]
[1721611311876,2.82182,3543.8,3542.9,2.82253]
[1721611312072,2.82182,3543.8,3543.2,0.03487522]
[1721611312277,0.564349,3543.7,3543.2,0.03487522]
[1721611312578,0.564349,3543.7,3543.3,0.03487522]
[1721611312780,2.82175,3543.9,3543.0,0.58979635]
[1721611312993,2.82183,3543.8,3543.1,3.62829337]
[1721611313206,0.29525148,3544.2,3543.2,2.4536218]
[1721611313207,2.82193,3543.7,3543.2,2.4536218]
[1721611313520,2.82193,3543.7,3542.8,0.58979635]
[1721611313682,0.282193,3543.6,3543.3,0.03487522]
[1721611313898,0.282193,3543.6,3542.8,0.58979635]
[1721611314190,2.8222,3543.4,3542.9,2.45387508]
[1721611314521,2.82229,3543.3,3543.0,0.03487522]
[1721611314820,0.282229,3543.2,3542.8,0.55]
[1721611315133,0.282229,3543.2,3543.1,0.03487522]
[1721611315306,0.282229,3543.2,3542.8,1.13979635]
[1721611315613,0.282229,3543.2,3542.9,2.45389513]
[1721611315915,0.282229,3543.2,3543.0,0.98155805]
[1721611316118,0.282229,3543.2,3542.9,0.03487522]
[1721611316119,0.3104519,3543.1,3542.9,0.03487522]
[1721611316325,2.36797139,3543.2,3542.7,0.58979635]
[1721611316481,2.82238,3543.1,3543.0,0.03487522]
[1721611316684,3.386833,3543.1,3542.7,0.58979635]
[1721611316919,3.386833,3543.1,3543.0,0.03487522]
[1721611317428,3.386833,3543.1,3542.3,7.3]
[1721611317429,2.82294,3542.4,3542.3,7.3]
[1721611317593,2.82294,3542.4,3542.3,2.45430635]
[1721611317789,3.387509,3542.4,3542.0,0.58979635]
[1721611317980,3.387509,3542.4,3541.8,0.88473946]
[1721611317981,3.387509,3542.4,3542.1,2.45447276]
[1721611318181,3.387509,3542.4,3541.9,0.58979635]
[1721611318381,3.387509,3542.4,3542.0,2.45448877]
[1721611318382,2.82303,3542.3,3542.0,2.45448877]
[1721611318618,0.564569,3542.4,3541.8,0.58979635]
[1721611318937,2.82288,3542.5,3541.9,3.04419538]
[1721611319231,2.82266,3542.8,3542.0,0.98175961]
[1721611319232,2.82273,3542.7,3542.0,0.98175961]
[1721611319526,2.82266,3542.8,3542.1,1.03821638]
[1721611319728,0.564512,3542.7,3542.2,0.98176238]
[1721611320026,0.564512,3542.7,3542.1,0.056454]
[1721611320192,0.564512,3542.7,3542.2,2.45429006]
[1721611320399,0.29530491,3543.3,3542.6,2.82276]
[1721611320720,2.82183,3543.8,3542.7,3.00390535]
[1721611320721,2.82206,3543.5,3542.7,3.00390535]
[1721611320931,2.82191,3543.7,3542.8,2.82258]
[1721611321100,2.82186,3543.8,3542.9,3.86047116]
[1721611321288,2.82194,3543.7,3542.9,0.05643959]
[1721611321492,0.564369,3543.6,3542.7,0.55]
[1721611321699,2.8221,3543.5,3542.7,3.37268]
[1721611321901,0.564369,3543.6,3542.8,3.80407382]
[1721611322112,0.564369,3543.6,3542.9,3.86046071]
[1721611322308,0.564369,3543.6,3542.9,2.87895914]
[1721611322587,0.3386279,3543.5,3543.0,0.55]
[1721611322803,0.564369,3543.6,3543.0,0.55]
[1721611323093,2.82172,3544.0,3542.3,0.58979635]
[1721611323291,2.82207,3543.5,3542.4,3.00386395]
[1721611323519,2.8222,3543.4,3542.5,0.98154558]
[1721611323742,5.82138,3544.4,3542.6,0.55]
[1721611323743,2.82203,3543.6,3542.6,0.55]
[1721611324034,0.564393,3543.5,3542.8,2.82262]
[1721611324207,2.82192,3543.7,3542.8,2.82262]
[1721611324794,2.82184,3543.8,3542.9,2.82252]
[1721611325020,2.82158,3544.2,3543.0,2.87889974]
[1721611325226,2.82101,3544.9,3543.4,2.82214]
[1721611325227,3.3767311,3544.5,3543.4,2.82214]
[1721611325438,3.3767311,3544.5,3543.1,2.82238]
[1721611325439,5.82101,3544.9,3543.5,0.05643246]
[1721611325616,2.82135,3544.4,3543.5,0.05643246]
[1721611325805,2.82153,3544.2,3543.5,0.05643246]
[1721611326017,2.82153,3544.2,3543.1,2.82238]
[1721611326243,0.564288,3544.1,3543.2,0.55]
[1721611326556,2.82127,3544.5,3543.6,2.82198]
[1721611326715,2.82127,3544.5,3543.7,0.05642869]
[1721611327037,2.82127,3544.5,3543.8,0.05642869]
[1721611327250,5.57907853,3545.1,3543.9,0.05642548]
[1721611327251,2.82102,3544.9,3543.9,0.05642548]
[1721611327538,2.82112,3544.7,3543.7,2.82188]
[1721611327704,2.82112,3544.7,3543.8,0.55]
[1721611327901,2.82112,3544.7,3543.8,0.58507932]
[1721611328216,3.66107085,3544.8,3543.8,3.40687932]
[1721611328420,0.64819409,3544.7,3543.8,3.40687932]
[1721611328647,3.46932409,3544.7,3543.8,3.40687932]
[1721611329150,0.64819409,3544.7,3544.0,2.82166]
[1721611329306,2.82039,3545.6,3544.2,2.82149]
[1721611329505,2.82061,3545.4,3544.5,2.82125]
[1721611329737,2.82049,3545.5,3544.0,2.4979]
[1721611330049,0.282049,3545.4,3544.4,2.82135]
[1721611330353,0.282049,3545.4,3544.5,0.60641337]
[1721611330716,3.102599,3545.4,3544.6,0.03469172]
[1721611330906,3.102599,3545.4,3544.7,0.05641282]
[1721611331346,0.282049,3545.4,3544.5,3.58741283]
[1721611331554,2.81968,3546.5,3545.4,2.82055]
[1721611331734,2.81983,3546.4,3545.4,2.82055]
[1721611332110,2.81983,3546.4,3545.5,0.03458719]
[1721611332333,0.29510535,3546.5,3545.5,0.03458719]
[1721611332548,2.82023,3545.8,3545.5,0.03458719]
[1721611332757,2.82023,3545.8,3544.9,2.82094]
[1721611332758,0.282023,3545.7,3544.9,2.82094]
[1721611332964,3.102353,3545.7,3545.6,0.03458719]
[1721611333270,2.82047,3545.5,3545.0,0.55]
[1721611333427,2.82039,3545.6,3544.7,3.37111]
[1721611333626,2.82039,3545.6,3545.1,0.03458719]
[1721611333824,2.82024,3545.8,3544.7,0.55]
[1721611334050,2.82024,3545.8,3545.2,0.03458719]
[1721611334262,2.82038,3545.7,3544.7,2.8211]
[1721611334562,2.82024,3545.8,3545.3,0.03458719]
[1721611334772,0.29510535,3546.5,3544.5,3.0]
[1721611335071,0.29510535,3546.5,3544.1,1.47144203]
[1721611335072,2.82064,3545.3,3544.6,0.58326902]
[1721611335374,0.31147154,3546.4,3544.6,3.01426902]
[1721611335537,0.31147154,3546.4,3544.9,2.82095]
[1721611335727,0.31147154,3546.4,3545.0,0.55]
[1721611335927,2.82001,3546.1,3545.0,0.55]
[1721611336155,2.82014,3546.0,3545.1,0.03326902]
[1721611336952,0.29510535,3546.5,3545.1,0.03326902]
[1721611337151,2.82062,3545.4,3545.1,0.03326902]
[1721611337331,2.82062,3545.4,3544.5,7.3]
[1721611337533,0.564103,3545.3,3544.5,7.3]
[1721611337732,0.564103,3545.3,3544.6,0.03214747]
[1721611337958,2.81995,3546.2,3545.2,2.82067]
[1721611338172,2.81995,3546.2,3545.0,2.82087]
[1721611338173,2.81976,3546.4,3545.3,2.82062]
[1721611338352,2.81986,3546.3,3545.3,2.82062]
[1721611338553,2.81986,3546.3,3545.4,0.03214747]
[1721611338759,2.81986,3546.3,3545.4,2.85269747]
[1721611338973,2.81986,3546.3,3545.5,0.55]
[1721611339283,0.59346454,3546.2,3545.5,0.58214747]
[1721611339447,0.59346454,3546.2,3545.6,2.87677928]
[1721611339986,0.59346454,3546.2,3545.5,0.55]
[1721611340597,0.29510535,3546.5,3545.6,0.03214747]
[1721611340748,2.4405,3546.8,3545.6,0.03214747]
[1721611340952,2.81985,3546.3,3545.6,0.03214747]
[1721611341260,2.81985,3546.3,3545.3,0.55]
[1721611341460,2.4405,3546.8,3545.3,0.55]